[Event "Late-Titled-Tuesday-Blitz-April-16-2024"]
[Site "Chess.com"]
[Date "2024.04.16"]
[Round "3"]
[White "martinmena"]
[Black "Leebit02"]
[Result "0-1"]
[WhiteElo "2184"]
[BlackElo "2542"]
[TimeControl "180+1"]
[EndTime "14:27:35 PDT"]
[Termination "Leebit02 won on time"]

1. c4 {[%clk 0:03:00.9]} 1... e5 {[%clk 0:02:58.3]} 2. g3 {[%clk 0:02:58.4]}
2... Nf6 {[%clk 0:02:58.5]} 3. Bg2 {[%clk 0:02:55.6]} 3... d5 {[%clk 0:02:59]}
4. cxd5 {[%clk 0:02:54.8]} 4... Nxd5 {[%clk 0:02:59.7]} 5. Nc3 {[%clk
0:02:54.7]} 5... Nb6 {[%clk 0:02:59.2]} 6. Nf3 {[%clk 0:02:53.5]} 6... Nc6
{[%clk 0:02:58.7]} 7. O-O {[%clk 0:02:52.4]} 7... Be7 {[%clk 0:02:59.1]} 8. d3
{[%clk 0:02:51.9]} 8... O-O {[%clk 0:02:59.2]} 9. a3 {[%clk 0:02:51.4]} 9... Be6
{[%clk 0:02:55.9]} 10. b4 {[%clk 0:02:49.4]} 10... f6 {[%clk 0:02:54.4]} 11. Bb2
{[%clk 0:02:32.6]} 11... Rb8 {[%clk 0:02:21.9]} 12. Rc1 {[%clk 0:02:24.2]} 12...
Re8 {[%clk 0:02:17]} 13. Ne4 {[%clk 0:02:15.8]} 13... Bd5 {[%clk 0:02:14.3]} 14.
Nc5 {[%clk 0:02:12.5]} 14... Nd4 {[%clk 0:02:04.9]} 15. Nxd4 {[%clk 0:00:50.7]}
15... exd4 {[%clk 0:02:04.9]} 16. Bxd5+ {[%clk 0:00:46.5]} 16... Qxd5 {[%clk
0:02:05.1]} 17. Qb3 {[%clk 0:00:44.6]} 17... Bxc5 {[%clk 0:02:03]} 18. Qxd5+
{[%clk 0:00:42.1]} 18... Nxd5 {[%clk 0:02:03.7]} 19. Rxc5 {[%clk 0:00:41.9]}
19... Rbd8 {[%clk 0:02:04.3]} 20. Bxd4 {[%clk 0:00:36.6]} 20... Rxe2 {[%clk
0:02:02.2]} 21. Rcc1 {[%clk 0:00:18.4]} 21... c6 {[%clk 0:01:31.9]} 22. Bxa7
{[%clk 0:00:15]} 22... Ra8 {[%clk 0:01:32]} 23. Bc5 {[%clk 0:00:10.4]} 23...
Rxa3 {[%clk 0:01:32.1]} 24. b5 {[%clk 0:00:09.9]} 24... Rxd3 {[%clk 0:01:32.3]}
25. bxc6 {[%clk 0:00:09.8]} 25... bxc6 {[%clk 0:01:31.3]} 26. Ba7 {[%clk
0:00:10.1]} 26... Ne7 {[%clk 0:01:28.2]} 27. Bc5 {[%clk 0:00:09.4]} 27... Ng6
{[%clk 0:01:24.3]} 28. Be3 {[%clk 0:00:08.9]} 28... Ne5 {[%clk 0:01:23.9]} 29.
Bf4 {[%clk 0:00:09]} 29... Nf3+ {[%clk 0:01:13.7]} 30. Kg2 {[%clk 0:00:08.9]}
30... g5 {[%clk 0:01:07.8]} 31. Be3 {[%clk 0:00:06.6]} 31... Rdxe3 {[%clk
0:01:05.4]} 32. Rxc6 {[%clk 0:00:03.2]} 32... Kg7 {[%clk 0:00:47.6]} 33. Rc7+
{[%clk 0:00:03.3]} 33... Kg6 {[%clk 0:00:47.2]} 34. Rd1 {[%clk 0:00:02.1]} 34...
g4 {[%clk 0:00:42.5]} 0-1

[Event "Late-Titled-Tuesday-Blitz-April-16-2024"]
[Site "Chess.com"]
[Date "2024.04.16"]
[Round "3"]
[White "EcosseKillie"]
[Black "steepedgames"]
[Result "0-1"]
[WhiteElo "2251"]
[BlackElo "2480"]
[TimeControl "180+1"]
[EndTime "14:27:36 PDT"]
[Termination "steepedgames won by resignation"]

1. d4 {[%clk 0:02:59.5]} 1... f5 {[%clk 0:02:59.7]} 2. Bg5 {[%clk 0:02:58.6]}
2... h6 {[%clk 0:02:58.7]} 3. Bh4 {[%clk 0:02:56.4]} 3... g5 {[%clk 0:02:58.8]}
4. e4 {[%clk 0:02:40.3]} 4... Bg7 {[%clk 0:02:56.6]} 5. Bg3 {[%clk 0:02:34.3]}
5... f4 {[%clk 0:02:55.7]} 6. Bxf4 {[%clk 0:02:31.5]} 6... gxf4 {[%clk
0:02:55.4]} 7. Qh5+ {[%clk 0:02:32.3]} 7... Kf8 {[%clk 0:02:55.4]} 8. Qf5+
{[%clk 0:02:31.2]} 8... Ke8 {[%clk 0:02:52]} 9. Be2 {[%clk 0:02:27.3]} 9... Nf6
{[%clk 0:02:35.8]} 10. e5 {[%clk 0:02:18.5]} 10... e6 {[%clk 0:02:34.8]} 11.
Qxf4 {[%clk 0:02:05.4]} 11... Rf8 {[%clk 0:02:05.1]} 12. exf6 {[%clk 0:01:59.6]}
12... Rxf6 {[%clk 0:02:04.8]} 13. Bh5+ {[%clk 0:01:52.1]} 13... Kf8 {[%clk
0:02:04.4]} 14. Qe3 {[%clk 0:01:49.7]} 14... Nc6 {[%clk 0:02:01.8]} 15. Nf3
{[%clk 0:01:49.2]} 15... d6 {[%clk 0:01:40.7]} 16. O-O {[%clk 0:01:48.4]} 16...
Kg8 {[%clk 0:01:38.2]} 17. Nbd2 {[%clk 0:01:42.7]} 17... Bd7 {[%clk 0:01:34.2]}
18. Bg4 {[%clk 0:01:42.5]} 18... Qf8 {[%clk 0:01:27.9]} 19. c3 {[%clk
0:01:39.6]} 19... Re8 {[%clk 0:01:25.4]} 20. Ne4 {[%clk 0:01:39.7]} 20... Rf4
{[%clk 0:01:21.9]} 21. Bh3 {[%clk 0:01:33.1]} 21... Bc8 {[%clk 0:00:50]} 22. Ng3
{[%clk 0:01:31.2]} 22... e5 {[%clk 0:00:36.2]} 23. Bxc8 {[%clk 0:01:27.5]} 23...
Rxc8 {[%clk 0:00:36.1]} 24. Nh5 {[%clk 0:01:24.7]} 24... Rf5 {[%clk 0:00:32.2]}
25. Nxg7 {[%clk 0:01:23.9]} 25... Qxg7 {[%clk 0:00:28.1]} 26. dxe5 {[%clk
0:01:22.3]} 26... Nxe5 {[%clk 0:00:24.2]} 27. Nxe5 {[%clk 0:01:22.3]} 27... Rxe5
{[%clk 0:00:24.5]} 28. Qxa7 {[%clk 0:01:21.6]} 28... b6 {[%clk 0:00:20.2]} 29.
Qa6 {[%clk 0:01:18.2]} 29... Rce8 {[%clk 0:00:19.4]} 30. Qd3 {[%clk 0:01:05.2]}
30... Re2 {[%clk 0:00:19.6]} 31. b4 {[%clk 0:01:00.4]} 31... Rb2 {[%clk
0:00:17.4]} 32. Rfe1 {[%clk 0:00:51.5]} 32... Rxe1+ {[%clk 0:00:17.1]} 33. Rxe1
{[%clk 0:00:52.3]} 33... Rxa2 {[%clk 0:00:17.6]} 34. Qd5+ {[%clk 0:00:52.4]}
34... Qf7 {[%clk 0:00:17.8]} 35. Qxa2 {[%clk 0:00:46.9]} 35... Qxa2 {[%clk
0:00:17.3]} 36. Rc1 {[%clk 0:00:47.8]} 36... Qd2 {[%clk 0:00:17]} 0-1

[Event "Late-Titled-Tuesday-Blitz-April-16-2024"]
[Site "Chess.com"]
[Date "2024.04.16"]
[Round "3"]
[White "chucksterf10"]
[Black "PapaieDudu"]
[Result "1-0"]
[WhiteElo "2580"]
[BlackElo "2337"]
[TimeControl "180+1"]
[EndTime "14:27:41 PDT"]
[Termination "chucksterf10 won on time"]

1. b3 {[%clk 0:03:00.9]} 1... d5 {[%clk 0:02:59.6]} 2. Bb2 {[%clk 0:03:00.4]}
2... c5 {[%clk 0:02:59.8]} 3. Nf3 {[%clk 0:03:00.7]} 3... Nc6 {[%clk 0:03:00.2]}
4. g3 {[%clk 0:03:01.1]} 4... Bg4 {[%clk 0:03:00.3]} 5. Bg2 {[%clk 0:03:01.1]}
5... Nf6 {[%clk 0:03:00.5]} 6. O-O {[%clk 0:03:00.8]} 6... e6 {[%clk 0:03:01]}
7. d3 {[%clk 0:03:01.4]} 7... Be7 {[%clk 0:03:00.2]} 8. Nbd2 {[%clk 0:03:02]}
8... O-O {[%clk 0:02:59.7]} 9. Re1 {[%clk 0:03:02.6]} 9... Re8 {[%clk
0:02:59.5]} 10. h3 {[%clk 0:03:03.1]} 10... Bh5 {[%clk 0:02:59.2]} 11. e4 {[%clk
0:03:03.5]} 11... d4 {[%clk 0:02:58.8]} 12. g4 {[%clk 0:03:02.7]} 12... Bg6
{[%clk 0:02:56.7]} 13. Nh4 {[%clk 0:03:02.7]} 13... b5 {[%clk 0:02:44.7]} 14. f4
{[%clk 0:03:02.8]} 14... Rc8 {[%clk 0:02:34.4]} 15. f5 {[%clk 0:02:54.2]} 15...
Nd7 {[%clk 0:02:17.3]} 16. Nhf3 {[%clk 0:02:50.1]} 16... c4 {[%clk 0:02:10.6]}
17. bxc4 {[%clk 0:02:44]} 17... bxc4 {[%clk 0:02:09.4]} 18. Nxc4 {[%clk
0:02:44.9]} 18... exf5 {[%clk 0:02:07.8]} 19. exf5 {[%clk 0:02:44.8]} 19... Bh5
{[%clk 0:02:05.9]} 20. gxh5 {[%clk 0:02:44.3]} 20... Nf6 {[%clk 0:02:02.5]} 21.
h6 {[%clk 0:02:39.5]} 21... gxh6 {[%clk 0:01:58.8]} 22. Nfe5 {[%clk 0:02:38.7]}
22... Nb4 {[%clk 0:01:57.4]} 23. Kh1 {[%clk 0:02:31.3]} 23... Nbd5 {[%clk
0:01:53.4]} 24. Rg1 {[%clk 0:02:29.8]} 24... Nf4 {[%clk 0:01:44.7]} 25. Qd2
{[%clk 0:02:17.5]} 25... N6h5 {[%clk 0:01:31]} 26. Bf3+ {[%clk 0:02:08.5]} 26...
Bg5 {[%clk 0:01:30]} 27. Bxh5 {[%clk 0:02:03.3]} 27... Nxh5 {[%clk 0:01:16.2]}
28. h4 {[%clk 0:01:50.2]} 28... Qd5+ {[%clk 0:00:55.7]} 29. Qg2 {[%clk
0:01:49.6]} 29... Ng3+ {[%clk 0:00:43.1]} 30. Kh2 {[%clk 0:01:48.6]} 30... Rxe5
{[%clk 0:00:32.4]} 31. Nxe5 {[%clk 0:01:40.9]} 31... Qxe5 {[%clk 0:00:24.8]} 32.
Qxg3 {[%clk 0:01:39.5]} 32... Rxc2+ {[%clk 0:00:23.6]} 33. Kh3 {[%clk
0:00:57.3]} 33... Qe2 {[%clk 0:00:07.9]} 34. Rg2 {[%clk 0:00:49.3]} 34... Qxg2+
{[%clk 0:00:03.4]} 35. Qxg2 {[%clk 0:00:49.3]} 35... Rxg2 {[%clk 0:00:04.1]} 36.
Kxg2 {[%clk 0:00:50]} 36... Be3 {[%clk 0:00:02.9]} 37. f6 {[%clk 0:00:47.7]}
37... Kf8 {[%clk 0:00:03.4]} 38. Re1 {[%clk 0:00:45.5]} 38... h5 {[%clk
0:00:03]} 39. a4 {[%clk 0:00:43.7]} 39... a6 {[%clk 0:00:02.2]} 40. Kf3 {[%clk
0:00:43.5]} 1-0

[Event "Late-Titled-Tuesday-Blitz-April-16-2024"]
[Site "Chess.com"]
[Date "2024.04.16"]
[Round "3"]
[White "kleber2007"]
[Black "BogdanDeac"]
[Result "0-1"]
[WhiteElo "2522"]
[BlackElo "2998"]
[TimeControl "180+1"]
[EndTime "14:27:42 PDT"]
[Termination "BogdanDeac won by resignation"]

1. Nf3 {[%clk 0:02:53.9]} 1... d5 {[%clk 0:02:59.6]} 2. g3 {[%clk 0:02:53.8]}
2... Nd7 {[%clk 0:02:59.5]} 3. d4 {[%clk 0:02:52.4]} 3... Ngf6 {[%clk
0:03:00.1]} 4. Bg2 {[%clk 0:02:51.8]} 4... e6 {[%clk 0:03:00.7]} 5. O-O {[%clk
0:02:51.4]} 5... Be7 {[%clk 0:03:01]} 6. c4 {[%clk 0:02:51.3]} 6... O-O {[%clk
0:03:01.6]} 7. Qc2 {[%clk 0:02:50.4]} 7... c6 {[%clk 0:03:02]} 8. Nbd2 {[%clk
0:02:49.6]} 8... b6 {[%clk 0:03:02.2]} 9. e4 {[%clk 0:02:49.5]} 9... dxc4 {[%clk
0:03:02.6]} 10. Nxc4 {[%clk 0:02:47.3]} 10... Bb7 {[%clk 0:03:03.2]} 11. Rd1
{[%clk 0:02:46.4]} 11... c5 {[%clk 0:03:01.7]} 12. d5 {[%clk 0:02:19.4]} 12...
exd5 {[%clk 0:02:59]} 13. exd5 {[%clk 0:02:20.3]} 13... Bxd5 {[%clk 0:02:54.8]}
14. Bf4 {[%clk 0:02:04.8]} 14... Qc8 {[%clk 0:02:35.9]} 15. Nd6 {[%clk
0:01:42.2]} 15... Bxd6 {[%clk 0:02:05.2]} 16. Bxd6 {[%clk 0:01:43.1]} 16... Be4
{[%clk 0:02:05.7]} 17. Qc4 {[%clk 0:01:29.5]} 17... Qb7 {[%clk 0:02:01.1]} 18.
Bxf8 {[%clk 0:01:15.9]} 18... Rxf8 {[%clk 0:02:02]} 19. Nh4 {[%clk 0:01:11.9]}
19... Bxg2 {[%clk 0:02:01.1]} 20. Nxg2 {[%clk 0:01:08.1]} 20... Ne5 {[%clk
0:02:01.7]} 21. Qf4 {[%clk 0:00:47.4]} 21... Nf3+ {[%clk 0:02:01]} 22. Kh1
{[%clk 0:00:46.9]} 22... Nd4 {[%clk 0:02:01.6]} 23. Rxd4 {[%clk 0:00:44.9]}
23... cxd4 {[%clk 0:02:01.7]} 24. Qxd4 {[%clk 0:00:45.8]} 24... Re8 {[%clk
0:02:02.1]} 25. Kg1 {[%clk 0:00:44.9]} 25... h6 {[%clk 0:01:41.3]} 26. Ne3
{[%clk 0:00:43.5]} 26... Qf3 {[%clk 0:01:38.2]} 27. Qd1 {[%clk 0:00:41.5]} 27...
Qe4 {[%clk 0:01:34.6]} 28. Rc1 {[%clk 0:00:41]} 28... Qe6 {[%clk 0:01:27.3]} 29.
Qb3 {[%clk 0:00:38.9]} 29... Qxb3 {[%clk 0:01:21.7]} 30. axb3 {[%clk 0:00:39.8]}
30... Rd8 {[%clk 0:01:22]} 31. Rc7 {[%clk 0:00:38]} 31... Rd7 {[%clk 0:01:22.2]}
32. Rxd7 {[%clk 0:00:36.2]} 32... Nxd7 {[%clk 0:01:22.1]} 33. Kf1 {[%clk
0:00:37.1]} 33... Nc5 {[%clk 0:01:18.6]} 34. b4 {[%clk 0:00:35.2]} 34... Nd3
{[%clk 0:01:18.8]} 35. b3 {[%clk 0:00:34.2]} 35... Nxb4 {[%clk 0:01:18.7]} 36.
Ke2 {[%clk 0:00:33.5]} 36... Kf8 {[%clk 0:01:19.2]} 37. Kf3 {[%clk 0:00:32.3]}
37... Ke7 {[%clk 0:01:15.4]} 38. Ke4 {[%clk 0:00:33.2]} 38... g6 {[%clk
0:01:12.9]} 39. h4 {[%clk 0:00:32.3]} 39... Ke6 {[%clk 0:01:12.9]} 40. f4 {[%clk
0:00:29.9]} 40... f5+ {[%clk 0:01:08]} 41. Kd4 {[%clk 0:00:29.5]} 41... Nc6+
{[%clk 0:01:08.5]} 42. Kc4 {[%clk 0:00:29]} 42... a6 {[%clk 0:01:07.9]} 43. g4
{[%clk 0:00:21.4]} 43... fxg4 {[%clk 0:01:04.5]} 44. Nxg4 {[%clk 0:00:22.3]}
44... h5 {[%clk 0:01:04.6]} 45. Ne3 {[%clk 0:00:22.5]} 45... Ne7 {[%clk
0:01:04.9]} 46. b4 {[%clk 0:00:21.5]} 46... Nf5 {[%clk 0:01:03.7]} 47. Nd5
{[%clk 0:00:19.7]} 47... a5 {[%clk 0:00:55.8]} 48. b5 {[%clk 0:00:19.2]} 48...
Nd6+ {[%clk 0:00:55.3]} 49. Kd4 {[%clk 0:00:18.3]} 49... Nxb5+ {[%clk
0:00:55.6]} 50. Kc4 {[%clk 0:00:19.2]} 50... Nd6+ {[%clk 0:00:55.8]} 51. Kd4
{[%clk 0:00:19]} 51... Nf5+ {[%clk 0:00:55.3]} 52. Kc4 {[%clk 0:00:19.1]} 52...
b5+ {[%clk 0:00:54.2]} 53. Kc5 {[%clk 0:00:19.2]} 53... Nxh4 {[%clk 0:00:54.7]}
54. Nc7+ {[%clk 0:00:18]} 54... Kf5 {[%clk 0:00:54.9]} 55. Nxb5 {[%clk
0:00:18.9]} 0-1

[Event "Late-Titled-Tuesday-Blitz-April-16-2024"]
[Site "Chess.com"]
[Date "2024.04.16"]
[Round "3"]
[White "AlexPapasimakopoulos"]
[Black "Durarbayli"]
[Result "0-1"]
[WhiteElo "2638"]
[BlackElo "2885"]
[TimeControl "180+1"]
[EndTime "14:27:43 PDT"]
[Termination "Durarbayli won by checkmate"]

1. d4 {[%clk 0:03:00.9]} 1... Nf6 {[%clk 0:02:59.2]} 2. c4 {[%clk 0:03:01.6]}
2... e6 {[%clk 0:02:59.1]} 3. Nc3 {[%clk 0:03:02.3]} 3... Bb4 {[%clk 0:02:58.5]}
4. Qc2 {[%clk 0:03:03.1]} 4... c5 {[%clk 0:02:58.4]} 5. dxc5 {[%clk 0:03:03.2]}
5... Na6 {[%clk 0:02:58.4]} 6. a3 {[%clk 0:03:03]} 6... Bxc3+ {[%clk 0:02:58.1]}
7. Qxc3 {[%clk 0:03:03.9]} 7... Nxc5 {[%clk 0:02:57.5]} 8. f3 {[%clk 0:03:04.5]}
8... a5 {[%clk 0:02:51.3]} 9. e4 {[%clk 0:03:00.5]} 9... d6 {[%clk 0:02:51.1]}
10. Be3 {[%clk 0:03:00.8]} 10... a4 {[%clk 0:02:50.1]} 11. e5 {[%clk 0:02:57.9]}
11... Nfd7 {[%clk 0:02:35.9]} 12. exd6 {[%clk 0:02:57.3]} 12... O-O {[%clk
0:02:36.1]} 13. Rd1 {[%clk 0:02:53.5]} 13... Ra6 {[%clk 0:02:28.2]} 14. Nh3
{[%clk 0:02:35.2]} 14... Rc6 {[%clk 0:02:12.6]} 15. Be2 {[%clk 0:02:33.4]} 15...
b6 {[%clk 0:02:07.3]} 16. O-O {[%clk 0:02:29.3]} 16... Nb7 {[%clk 0:02:06.4]}
17. Qb4 {[%clk 0:02:26.8]} 17... Ndc5 {[%clk 0:02:04.9]} 18. f4 {[%clk
0:02:10.4]} 18... Rxd6 {[%clk 0:02:01.2]} 19. Rxd6 {[%clk 0:02:06.2]} 19... Qxd6
{[%clk 0:02:02.1]} 20. Rd1 {[%clk 0:02:06]} 20... Qc7 {[%clk 0:02:00.2]} 21. Ng5
{[%clk 0:01:56.6]} 21... Nd6 {[%clk 0:01:38.1]} 22. Bxc5 {[%clk 0:01:46]} 22...
bxc5 {[%clk 0:01:38.3]} 23. Qxa4 {[%clk 0:01:46]} 23... Nf5 {[%clk 0:01:36.5]}
24. g3 {[%clk 0:01:43.4]} 24... Nd4 {[%clk 0:01:27.8]} 25. Bf1 {[%clk 0:01:38]}
25... h6 {[%clk 0:01:26.6]} 26. Ne4 {[%clk 0:01:32.4]} 26... Bb7 {[%clk
0:01:24.2]} 27. Bg2 {[%clk 0:01:32.5]} 27... Ra8 {[%clk 0:00:52.2]} 28. Nxc5
{[%clk 0:00:30.6]} 28... Rxa4 {[%clk 0:00:51.6]} 29. Nxa4 {[%clk 0:00:17.4]}
29... Ne2+ {[%clk 0:00:44.9]} 30. Kf2 {[%clk 0:00:17.3]} 30... Bxg2 {[%clk
0:00:45.8]} 31. Kxg2 {[%clk 0:00:13.1]} 31... Qxc4 {[%clk 0:00:35.9]} 32. Rd2
{[%clk 0:00:11.1]} 32... Nxf4+ {[%clk 0:00:34.6]} 33. gxf4 {[%clk 0:00:11.1]}
33... Qxa4 {[%clk 0:00:35.5]} 34. Kf3 {[%clk 0:00:11]} 34... f5 {[%clk
0:00:35.3]} 35. Re2 {[%clk 0:00:09.9]} 35... Kf7 {[%clk 0:00:35.3]} 36. Re3
{[%clk 0:00:08.7]} 36... g5 {[%clk 0:00:35.1]} 37. fxg5 {[%clk 0:00:08.4]} 37...
hxg5 {[%clk 0:00:36]} 38. b4 {[%clk 0:00:08.7]} 38... g4+ {[%clk 0:00:35.4]} 39.
Kf4 {[%clk 0:00:08.4]} 39... Kf6 {[%clk 0:00:35.5]} 40. Rc3 {[%clk 0:00:07.9]}
40... Qd1 {[%clk 0:00:35.2]} 41. Kg3 {[%clk 0:00:07.6]} 41... Qe1+ {[%clk
0:00:35]} 42. Kf4 {[%clk 0:00:07.6]} 42... e5# {[%clk 0:00:33.9]} 0-1

[Event "Late-Titled-Tuesday-Blitz-April-16-2024"]
[Site "Chess.com"]
[Date "2024.04.16"]
[Round "3"]
[White "alexrustemov"]
[Black "CrushingKings"]
[Result "1-0"]
[WhiteElo "2857"]
[BlackElo "2595"]
[TimeControl "180+1"]
[EndTime "14:27:43 PDT"]
[Termination "alexrustemov won on time"]

1. d4 {[%clk 0:03:00.9]} 1... g6 {[%clk 0:03:00.4]} 2. c4 {[%clk 0:03:01.1]}
2... Bg7 {[%clk 0:03:01]} 3. Nf3 {[%clk 0:03:01.6]} 3... Nf6 {[%clk 0:03:00.3]}
4. g3 {[%clk 0:03:01.9]} 4... O-O {[%clk 0:03:01]} 5. Bg2 {[%clk 0:03:02.4]}
5... d6 {[%clk 0:03:01.9]} 6. Nc3 {[%clk 0:03:02.4]} 6... Nbd7 {[%clk
0:03:02.8]} 7. O-O {[%clk 0:03:02.5]} 7... c5 {[%clk 0:03:03.5]} 8. d5 {[%clk
0:02:59.8]} 8... Rb8 {[%clk 0:03:04]} 9. e4 {[%clk 0:02:57.7]} 9... a6 {[%clk
0:03:04.3]} 10. a4 {[%clk 0:02:57.4]} 10... b6 {[%clk 0:03:04.9]} 11. h3 {[%clk
0:02:55.8]} 11... Ne8 {[%clk 0:03:05.5]} 12. Bf4 {[%clk 0:02:50.6]} 12... Nc7
{[%clk 0:03:06.1]} 13. Qc2 {[%clk 0:02:25.7]} 13... b5 {[%clk 0:03:06.2]} 14.
Nd2 {[%clk 0:02:23.5]} 14... Ne5 {[%clk 0:03:02.5]} 15. b3 {[%clk 0:02:21]}
15... b4 {[%clk 0:02:34.2]} 16. Ne2 {[%clk 0:02:17.9]} 16... e6 {[%clk
0:02:34.8]} 17. Rae1 {[%clk 0:02:07.7]} 17... exd5 {[%clk 0:02:34.9]} 18. exd5
{[%clk 0:02:03.9]} 18... Bf5 {[%clk 0:02:30]} 19. Ne4 {[%clk 0:02:02.8]} 19...
Qd7 {[%clk 0:01:48.2]} 20. Kh2 {[%clk 0:02:01.4]} 20... Rbe8 {[%clk 0:01:47.8]}
21. Ng1 {[%clk 0:01:52.6]} 21... h6 {[%clk 0:01:36.4]} 22. Re2 {[%clk
0:01:51.6]} 22... g5 {[%clk 0:01:34.8]} 23. Bc1 {[%clk 0:01:50.6]} 23... Bg6
{[%clk 0:01:33.1]} 24. g4 {[%clk 0:01:32.9]} 24... f5 {[%clk 0:01:28.8]} 25.
gxf5 {[%clk 0:01:32.8]} 25... Bxf5 {[%clk 0:01:27.6]} 26. f4 {[%clk 0:01:32.3]}
26... gxf4 {[%clk 0:01:20.1]} 27. Bxf4 {[%clk 0:01:33.2]} 27... Ng6 {[%clk
0:01:20.5]} 28. Bg3 {[%clk 0:01:31.8]} 28... h5 {[%clk 0:00:55.6]} 29. Nf3
{[%clk 0:01:30.8]} 29... Qd8 {[%clk 0:00:38.5]} 30. h4 {[%clk 0:01:22.6]} 30...
Ne5 {[%clk 0:00:30.7]} 31. Nfg5 {[%clk 0:01:09.5]} 31... Ng4+ {[%clk 0:00:21.9]}
32. Kh1 {[%clk 0:01:09.7]} 32... Bd4 {[%clk 0:00:21.8]} 33. Qd2 {[%clk 0:01:04]}
33... Bg6 {[%clk 0:00:08.8]} 34. Nxd6 {[%clk 0:00:55.3]} 34... Rxf1+ {[%clk
0:00:06.5]} 35. Bxf1 {[%clk 0:00:55.7]} 35... Ne3 {[%clk 0:00:06.9]} 36. Bh3
{[%clk 0:00:50.2]} 36... Re7 {[%clk 0:00:03]} 37. Ne6 {[%clk 0:00:41.4]} 37...
Nxe6 {[%clk 0:00:02.5]} 38. Bxe6+ {[%clk 0:00:34.6]} 1-0

[Event "Late-Titled-Tuesday-Blitz-April-16-2024"]
[Site "Chess.com"]
[Date "2024.04.16"]
[Round "3"]
[White "watermelonattackk"]
[Black "SpongeBob_03"]
[Result "1-0"]
[WhiteElo "2475"]
[BlackElo "2268"]
[TimeControl "180+1"]
[EndTime "14:27:45 PDT"]
[Termination "watermelonattackk won on time"]

1. d4 {[%clk 0:02:58]} 1... d5 {[%clk 0:02:59.4]} 2. c4 {[%clk 0:02:58.2]} 2...
e6 {[%clk 0:02:57.3]} 3. Nf3 {[%clk 0:02:58.1]} 3... a6 {[%clk 0:02:56.7]} 4.
Qc2 {[%clk 0:02:56.8]} 4... h6 {[%clk 0:02:56]} 5. g3 {[%clk 0:02:57]} 5... c6
{[%clk 0:02:56]} 6. Bg2 {[%clk 0:02:57.1]} 6... b5 {[%clk 0:02:55]} 7. b3 {[%clk
0:02:55.6]} 7... Bb4+ {[%clk 0:02:52.5]} 8. Bd2 {[%clk 0:02:55.6]} 8... Bxd2+
{[%clk 0:02:52.7]} 9. Nbxd2 {[%clk 0:02:56]} 9... Nf6 {[%clk 0:02:53.5]} 10. O-O
{[%clk 0:02:56.1]} 10... O-O {[%clk 0:02:53.4]} 11. Rfd1 {[%clk 0:02:55]} 11...
Bb7 {[%clk 0:02:53.8]} 12. e4 {[%clk 0:02:54.1]} 12... Nbd7 {[%clk 0:02:48.9]}
13. cxd5 {[%clk 0:02:51.2]} 13... cxd5 {[%clk 0:02:47.5]} 14. e5 {[%clk
0:02:51.9]} 14... Rc8 {[%clk 0:02:44.9]} 15. Qd3 {[%clk 0:02:50.2]} 15... Ne4
{[%clk 0:02:41.6]} 16. Rac1 {[%clk 0:02:49.8]} 16... Qa5 {[%clk 0:02:36.2]} 17.
Ra1 {[%clk 0:02:34.2]} 17... Rc3 {[%clk 0:02:12.8]} 18. Qf1 {[%clk 0:02:32]}
18... f5 {[%clk 0:01:30.3]} 19. exf6 {[%clk 0:02:18.8]} 19... Ndxf6 {[%clk
0:01:28.7]} 20. Ne5 {[%clk 0:02:17.3]} 20... Nxd2 {[%clk 0:01:24.4]} 21. Rxd2
{[%clk 0:02:17.5]} 21... Rxg3 {[%clk 0:01:23.6]} 22. Rc2 {[%clk 0:02:00.1]}
22... Rc3 {[%clk 0:01:14.6]} 23. Rac1 {[%clk 0:01:54.7]} 23... Rfc8 {[%clk
0:01:11.5]} 24. b4 {[%clk 0:01:43.7]} 24... Qxb4 {[%clk 0:01:03.4]} 25. Qe1
{[%clk 0:01:43.2]} 25... Rxc2 {[%clk 0:00:51.8]} 26. Qxb4 {[%clk 0:01:42.6]}
26... Rxc1+ {[%clk 0:00:52.6]} 27. Bf1 {[%clk 0:01:43.3]} 27... Ne4 {[%clk
0:00:34.8]} 28. Kg2 {[%clk 0:01:17.7]} 28... R8c2 {[%clk 0:00:23.2]} 29. Nd3
{[%clk 0:01:15.3]} 29... Bc8 {[%clk 0:00:18.3]} 30. Nxc1 {[%clk 0:01:10.9]}
30... Rxc1 {[%clk 0:00:13.2]} 31. Bd3 {[%clk 0:01:10.1]} 31... Nf6 {[%clk
0:00:11.8]} 32. Qe7 {[%clk 0:01:06.9]} 32... Bd7 {[%clk 0:00:07.7]} 33. Bg6
{[%clk 0:01:05.5]} 33... Rc8 {[%clk 0:00:06.4]} 34. h3 {[%clk 0:01:03]} 34...
Rf8 {[%clk 0:00:05.9]} 35. f3 {[%clk 0:01:00.6]} 35... Be8 {[%clk 0:00:04.5]}
36. Qxe6+ {[%clk 0:00:59.9]} 36... Kh8 {[%clk 0:00:04.4]} 37. Bb1 {[%clk
0:00:57.8]} 37... Nh5 {[%clk 0:00:04.1]} 38. Qxa6 {[%clk 0:00:57.2]} 38... Nf4+
{[%clk 0:00:04.3]} 39. Kh2 {[%clk 0:00:56.2]} 39... Bd7 {[%clk 0:00:04]} 40. Qd6
{[%clk 0:00:55.6]} 1-0